[Event "Titled Tuesday Blitz May 30 Late 2023"]
[White "reevecanada"]
[Black "Chor, Kevin"]
[BlackFideId "2090740"]
[WhiteElo "2446"]
[BlackElo "2602"]
[Result "1-0"]
[Round "03"]
[TimeControl "180+2"]
[Date "2023.05.31"]
[WhiteClock "0:00:10"]
[BlackClock "0:00:05"]

1. e4 {[%clk 0:02:58]}  c5 {[%clk 0:02:59]} 2. Nf3 {[%clk 0:02:56]}  d6 {[%clk 0:03:00]} 3. d4 {[%clk 0:02:56]}  cxd4 {[%clk 0:03:00]} 4. Qxd4 {[%clk 0:02:55]}  a6 {[%clk 0:02:52]} 5. c4 {[%clk 0:02:41]}  Nc6 {[%clk 0:02:52]} 6. Qd1 {[%clk 0:02:39]}  Nf6 {[%clk 0:02:51]} 7. Nc3 {[%clk 0:02:38]}  g6 {[%clk 0:02:51]} 8. Be2 {[%clk 0:02:33]}  Bg7 {[%clk 0:02:51]} 9. O-O {[%clk 0:02:32]}  O-O {[%clk 0:02:51]} 10. Rb1 {[%clk 0:02:32]}  Bg4 {[%clk 0:02:43]} 11. b3 {[%clk 0:02:27]}  Rc8 {[%clk 0:02:33]} 12. Bb2 {[%clk 0:02:25]}  Qa5 {[%clk 0:02:32]} 13. Nd5 {[%clk 0:02:20]}  Nxe4 {[%clk 0:02:25]} 14. Bxg7 {[%clk 0:02:18]}  Kxg7 {[%clk 0:02:26]} 15. Nd4 {[%clk 0:02:02]}  Bxe2 {[%clk 0:02:01]} 16. Qxe2 {[%clk 0:01:59]}  Nd2 {[%clk 0:01:57]} 17. Nxc6 {[%clk 0:01:48]}  bxc6 {[%clk 0:01:56]} 18. Nxe7 {[%clk 0:01:37]}  Rce8 {[%clk 0:01:31]} 19. b4 {[%clk 0:01:27]}  Qg5 {[%clk 0:01:22]} 20. f4 {[%clk 0:01:19]}  Rxe7 {[%clk 0:01:01]} 21. Qxd2 {[%clk 0:01:18]}  Qf6 {[%clk 0:01:01]} 22. Rbd1 {[%clk 0:01:17]}  Rd8 {[%clk 0:01:00]} 23. a3 {[%clk 0:01:16]}  d5 {[%clk 0:01:00]} 24. cxd5 {[%clk 0:01:13]}  cxd5 {[%clk 0:00:59]} 25. Rfe1 {[%clk 0:01:10]}  d4 {[%clk 0:00:55]} 26. g3 {[%clk 0:00:59]}  d3 {[%clk 0:00:53]} 27. Rxe7 {[%clk 0:00:55]}  Qxe7 {[%clk 0:00:54]} 28. Qc3+ {[%clk 0:00:54]}  Kg8 {[%clk 0:00:34]} 29. Rxd3 {[%clk 0:00:52]}  Re8 {[%clk 0:00:34]} 30. Qd2 {[%clk 0:00:50]}  Qf6 {[%clk 0:00:31]} 31. Re3 {[%clk 0:00:48]}  Rd8 {[%clk 0:00:28]} 32. Qe2 {[%clk 0:00:46]}  Qb6 {[%clk 0:00:21]} 33. Qf2 {[%clk 0:00:41]}  Kg7 {[%clk 0:00:19]} 34. Re5 {[%clk 0:00:33]}  Rd1+ {[%clk 0:00:19]} 35. Kg2 {[%clk 0:00:32]}  Qc6+ {[%clk 0:00:19]} 36. Kh3 {[%clk 0:00:28]}  Qd7+ {[%clk 0:00:16]} 37. f5 {[%clk 0:00:26]}  Rd2 {[%clk 0:00:14]} 38. Qf4 {[%clk 0:00:22]}  Rd4 {[%clk 0:00:13]} 39. Qe3 {[%clk 0:00:19]}  Rd3 {[%clk 0:00:09]} 40. Qc5 {[%clk 0:00:13]}  gxf5 {[%clk 0:00:07]} 41. Rxf5 {[%clk 0:00:14]}  Qe6 {[%clk 0:00:04]} 42. Kh4 {[%clk 0:00:12]}  Qh6+ {[%clk 0:00:03]} 43. Rh5 {[%clk 0:00:12]}  Qf6+ {[%clk 0:00:03]} 44. Qg5+ {[%clk 0:00:11]}  Qxg5+ {[%clk 0:00:03]} 45. Rxg5+ {[%clk 0:00:12]}  Kf6 {[%clk 0:00:03]} 46. Ra5 {[%clk 0:00:13]}  Rd4+ {[%clk 0:00:03]} 47. g4 {[%clk 0:00:13]}  Rd6 {[%clk 0:00:04]} 48. Kh5 {[%clk 0:00:13]}  Kg7 {[%clk 0:00:05]} 49. h4 {[%clk 0:00:13]}  Rh6+ {[%clk 0:00:04]} 50. Kg5 {[%clk 0:00:13]}  Rd6 {[%clk 0:00:04]} 51. h5 {[%clk 0:00:13]}  h6+ {[%clk 0:00:01]} 52. Kf4 {[%clk 0:00:14]}  Rc6 {[%clk 0:00:02]} 53. Ke3 {[%clk 0:00:13]}  Kf6 {[%clk 0:00:03]} 54. Kd4 {[%clk 0:00:13]}  Rd6+ {[%clk 0:00:03]} 55. Rd5 {[%clk 0:00:12]}  Re6 {[%clk 0:00:04]} 56. Kc5 {[%clk 0:00:13]}  Re3 {[%clk 0:00:04]} 57. a4 {[%clk 0:00:13]}  Rb3 {[%clk 0:00:04]} 58. a5 {[%clk 0:00:12]}  Rc3+ {[%clk 0:00:04]} 59. Kb6 {[%clk 0:00:12]}  Rc4 {[%clk 0:00:05]} 60. b5 {[%clk 0:00:10]}  axb5 {[%clk 0:00:05]} 61. a6 {[%clk 0:00:10]}  Rxg4 {[%clk 0:00:06]} 62. a7 {[%clk 0:00:10]}  Ra4 {[%clk 0:00:07]} 63. Rxb5 {[%clk 0:00:10]}  Ke6 {[%clk 0:00:07]} 64. Ra5 {[%clk 0:00:09]}  Rb4+ {[%clk 0:00:07]} 65. Ka6 {[%clk 0:00:09]}  f5 {[%clk 0:00:06]} 66. a8=Q {[%clk 0:00:10]}  Kf6 {[%clk 0:00:06]} 67. Qc6+ {[%clk 0:00:09]}  Kg5 {[%clk 0:00:06]} 68. Qg6+ {[%clk 0:00:09]}  Kh4 {[%clk 0:00:06]} 69. Rxf5 {[%clk 0:00:09]}  Ra4+ {[%clk 0:00:06]} 70. Ra5 {[%clk 0:00:10]}  Rg4 {[%clk 0:00:05]} 71. Qxg4+ {[%clk 0:00:09]}  Kxg4 {[%clk 0:00:05]} 72. Kb6 {[%clk 0:00:10]} 1-0


[Site "https://www.chess.com"]

[Event "Titled Tuesday Blitz May 30 Late 2023"]
[White "MKlose11"]
[Black "Shapiro, Viktor"]
[BlackFideId "4175700"]
[WhiteElo "2602"]
[BlackElo "2152"]
[Result "1-0"]
[Round "03"]
[TimeControl "180+2"]
[Date "2023.05.31"]
[WhiteClock "0:00:09"]
[BlackClock "0:00:15"]

1. e4 {[%clk 0:02:56]}  c5 {[%clk 0:03:00]} 2. Nc3 {[%clk 0:02:56]}  Nc6 {[%clk 0:02:59]} 3. g3 {[%clk 0:02:57]}  g6 {[%clk 0:02:59]} 4. Bg2 {[%clk 0:02:56]}  Bg7 {[%clk 0:03:00]} 5. d3 {[%clk 0:02:57]}  e6 {[%clk 0:03:00]} 6. Be3 {[%clk 0:02:57]}  b6 {[%clk 0:02:59]} 7. Qd2 {[%clk 0:02:57]}  h6 {[%clk 0:02:59]} 8. Nge2 {[%clk 0:02:57]}  Nge7 {[%clk 0:02:59]} 9. O-O {[%clk 0:02:57]}  Bb7 {[%clk 0:02:56]} 10. d4 {[%clk 0:02:57]}  cxd4 {[%clk 0:02:52]} 11. Nxd4 {[%clk 0:02:58]}  Nxd4 {[%clk 0:02:52]} 12. Bxd4 {[%clk 0:02:58]}  O-O {[%clk 0:02:51]} 13. Bxg7 {[%clk 0:02:55]}  Kxg7 {[%clk 0:02:51]} 14. Rad1 {[%clk 0:02:56]}  Bc6 {[%clk 0:02:47]} 15. Qd4+ {[%clk 0:02:53]}  Kg8 {[%clk 0:02:38]} 16. e5 {[%clk 0:02:53]}  Nf5 {[%clk 0:02:34]} 17. Qd2 {[%clk 0:02:45]}  Qc7 {[%clk 0:02:21]} 18. f4 {[%clk 0:02:44]}  Rad8 {[%clk 0:02:17]} 19. Be4 {[%clk 0:02:33]}  d5 {[%clk 0:02:00]} 20. Bxf5 {[%clk 0:02:32]}  gxf5 {[%clk 0:01:56]} 21. Qd4 {[%clk 0:02:32]}  Kh7 {[%clk 0:01:51]} 22. Ne2 {[%clk 0:02:32]}  Bb5 {[%clk 0:01:49]} 23. Rd2 {[%clk 0:02:29]}  Rc8 {[%clk 0:01:46]} 24. Rf2 {[%clk 0:02:29]}  Bxe2 {[%clk 0:01:38]} 25. Rfxe2 {[%clk 0:02:29]}  Qc5 {[%clk 0:01:38]} 26. Kf2 {[%clk 0:02:26]}  Rc7 {[%clk 0:01:35]} 27. Rd3 {[%clk 0:02:10]}  Rfc8 {[%clk 0:01:33]} 28. Qxc5 {[%clk 0:02:08]}  bxc5 {[%clk 0:01:33]} 29. Ra3 {[%clk 0:02:07]}  c4 {[%clk 0:01:26]} 30. Ke3 {[%clk 0:02:06]}  Rb7 {[%clk 0:01:24]} 31. b3 {[%clk 0:02:03]}  c3 {[%clk 0:01:08]} 32. Kd3 {[%clk 0:01:58]}  Kg6 {[%clk 0:01:05]} 33. Ra6 {[%clk 0:01:52]}  h5 {[%clk 0:01:02]} 34. h4 {[%clk 0:01:39]}  Rcc7 {[%clk 0:00:57]} 35. Re3 {[%clk 0:01:39]}  Rb4 {[%clk 0:00:55]} 36. Re2 {[%clk 0:01:29]}  Re4 {[%clk 0:00:52]} 37. a3 {[%clk 0:01:22]}  Kg7 {[%clk 0:00:38]} 38. Ra5 {[%clk 0:01:05]}  Kg6 {[%clk 0:00:37]} 39. Rb5 {[%clk 0:01:05]}  Kg7 {[%clk 0:00:35]} 40. Rb8 {[%clk 0:01:05]}  Kh7 {[%clk 0:00:34]} 41. a4 {[%clk 0:01:05]}  Kg7 {[%clk 0:00:34]} 42. a5 {[%clk 0:01:05]}  Rc5 {[%clk 0:00:34]} 43. b4 {[%clk 0:01:02]}  Rcc4 {[%clk 0:00:34]} 44. Rxe4 {[%clk 0:01:02]}  fxe4+ {[%clk 0:00:34]} 45. Ke3 {[%clk 0:00:59]}  f6 {[%clk 0:00:24]} 46. b5 {[%clk 0:00:54]}  Rb4 {[%clk 0:00:22]} 47. b6 {[%clk 0:00:35]}  axb6 {[%clk 0:00:22]} 48. Rxb6 {[%clk 0:00:35]}  Ra4 {[%clk 0:00:13]} 49. Rxe6 {[%clk 0:00:34]}  f5 {[%clk 0:00:13]} 50. Rd6 {[%clk 0:00:22]}  Rxa5 {[%clk 0:00:13]} 51. Kd4 {[%clk 0:00:22]}  Ra4+ {[%clk 0:00:12]} 52. Kxc3 {[%clk 0:00:22]}  Rc4+ {[%clk 0:00:12]} 53. Kd2 {[%clk 0:00:22]}  Rc5 {[%clk 0:00:13]} 54. c3 {[%clk 0:00:22]}  Kf7 {[%clk 0:00:13]} 55. Ke2 {[%clk 0:00:22]}  Ke7 {[%clk 0:00:12]} 56. Kd2 {[%clk 0:00:22]}  Kf7 {[%clk 0:00:12]} 57. Rf6+ {[%clk 0:00:22]}  Ke7 {[%clk 0:00:12]} 58. Rxf5 {[%clk 0:00:23]}  Ra5 {[%clk 0:00:12]} 59. Rxh5 {[%clk 0:00:21]}  Ra2+ {[%clk 0:00:13]} 60. Ke3 {[%clk 0:00:22]}  Rc2 {[%clk 0:00:13]} 61. Kd4 {[%clk 0:00:22]}  Rd2+ {[%clk 0:00:13]} 62. Ke3 {[%clk 0:00:16]}  Rd3+ {[%clk 0:00:14]} 63. Ke2 {[%clk 0:00:14]}  Rxc3 {[%clk 0:00:15]} 64. f5 {[%clk 0:00:15]}  Rf3 {[%clk 0:00:15]} 65. g4 {[%clk 0:00:14]}  d4 {[%clk 0:00:15]} 66. Rh7+ {[%clk 0:00:14]}  Kd8 {[%clk 0:00:15]} 67. e6 {[%clk 0:00:14]}  d3+ {[%clk 0:00:15]} 68. Kd2 {[%clk 0:00:14]}  Rf2+ {[%clk 0:00:16]} 69. Ke1 {[%clk 0:00:14]}  Re2+ {[%clk 0:00:16]} 70. Kf1 {[%clk 0:00:13]}  e3 {[%clk 0:00:17]} 71. Rd7+ {[%clk 0:00:13]}  Ke8 {[%clk 0:00:17]} 72. Rxd3 {[%clk 0:00:14]}  Rf2+ {[%clk 0:00:17]} 73. Kg1 {[%clk 0:00:14]}  Rf4 {[%clk 0:00:18]} 74. Rxe3 {[%clk 0:00:13]}  Rxg4+ {[%clk 0:00:19]} 75. Kf2 {[%clk 0:00:13]}  Rf4+ {[%clk 0:00:18]} 76. Rf3 {[%clk 0:00:13]}  Rxh4 {[%clk 0:00:19]} 77. Kg3 {[%clk 0:00:13]}  Rh1 {[%clk 0:00:19]} 78. Kf4 {[%clk 0:00:11]}  Ke7 {[%clk 0:00:19]} 79. Rg3 {[%clk 0:00:11]}  Rf1+ {[%clk 0:00:19]} 80. Kg5 {[%clk 0:00:10]}  Rf2 {[%clk 0:00:18]} 81. Kg6 {[%clk 0:00:11]}  Rf4 {[%clk 0:00:17]} 82. Rg5 {[%clk 0:00:11]}  Rf1 {[%clk 0:00:17]} 83. Rg4 {[%clk 0:00:11]}  Rf3 {[%clk 0:00:17]} 84. Kg5 {[%clk 0:00:11]}  Rf1 {[%clk 0:00:17]} 85. Rg2 {[%clk 0:00:11]}  Rf3 {[%clk 0:00:16]} 86. Rg4 {[%clk 0:00:10]}  Rf1 {[%clk 0:00:16]} 87. Rg3 {[%clk 0:00:09]}  Rf2 {[%clk 0:00:16]} 88. Rb3 {[%clk 0:00:09]}  Rg2+ {[%clk 0:00:17]} 89. Kf4 {[%clk 0:00:09]}  Kf6 {[%clk 0:00:17]} 90. Rb7 {[%clk 0:00:08]}  Rf2+ {[%clk 0:00:17]} 91. Ke4 {[%clk 0:00:09]}  Re2+ {[%clk 0:00:17]} 92. Kd5 {[%clk 0:00:09]}  Re5+ {[%clk 0:00:17]} 93. Kd6 {[%clk 0:00:09]}  Re1 {[%clk 0:00:15]} 94. Rf7+ {[%clk 0:00:09]}  Kg5 {[%clk 0:00:15]} 95. e7 {[%clk 0:00:09]}  Rd1+ {[%clk 0:00:16]} 96. Kc5 {[%clk 0:00:09]}  Re1 {[%clk 0:00:15]} 97. f6 {[%clk 0:00:09]}  Kg6 {[%clk 0:00:15]} 98. Rf8 {[%clk 0:00:09]} 1-0


[Site "https://www.chess.com"]

[Event "Titled Tuesday Blitz May 30 Late 2023"]
[White "Mackster23"]
[Black "Perez, Maximiliano"]
[BlackFideId "117234"]
[WhiteElo "2444"]
[BlackElo "2344"]
[Result "0-1"]
[Round "03"]
[TimeControl "180+2"]
[Date "2023.05.31"]
[WhiteClock "0:00:21"]
[BlackClock "0:01:32"]

1. e4 {[%clk 0:03:00]}  c5 {[%clk 0:02:59]} 2. Nf3 {[%clk 0:03:00]}  Nc6 {[%clk 0:02:59]} 3. d4 {[%clk 0:02:57]}  cxd4 {[%clk 0:03:00]} 4. Nxd4 {[%clk 0:02:57]}  e5 {[%clk 0:03:00]} 5. Nb5 {[%clk 0:02:57]}  d6 {[%clk 0:03:01]} 6. N1c3 {[%clk 0:02:56]}  a6 {[%clk 0:03:01]} 7. Na3 {[%clk 0:02:56]}  Be7 {[%clk 0:03:02]} 8. Nd5 {[%clk 0:02:49]}  Nf6 {[%clk 0:02:58]} 9. Nxf6+ {[%clk 0:02:41]}  Bxf6 {[%clk 0:02:58]} 10. c4 {[%clk 0:02:41]}  O-O {[%clk 0:02:57]} 11. Bd3 {[%clk 0:02:39]}  Bg5 {[%clk 0:02:56]} 12. O-O {[%clk 0:02:38]}  Be6 {[%clk 0:02:53]} 13. Nc2 {[%clk 0:02:33]}  Rc8 {[%clk 0:02:52]} 14. b3 {[%clk 0:02:30]}  g6 {[%clk 0:02:49]} 15. Ba3 {[%clk 0:02:29]}  f5 {[%clk 0:02:40]} 16. exf5 {[%clk 0:02:27]}  gxf5 {[%clk 0:02:40]} 17. Be2 {[%clk 0:02:26]}  Be7 {[%clk 0:02:25]} 18. Bf3 {[%clk 0:02:12]}  e4 {[%clk 0:02:21]} 19. Re1 {[%clk 0:01:48]}  Bf6 {[%clk 0:02:04]} 20. Rb1 {[%clk 0:01:40]}  Be5 {[%clk 0:02:04]} 21. Be2 {[%clk 0:01:30]}  Kh8 {[%clk 0:01:56]} 22. Bb2 {[%clk 0:01:28]}  Rg8 {[%clk 0:01:54]} 23. Bf1 {[%clk 0:01:24]}  Qh4 {[%clk 0:01:50]} 24. Bxe5+ {[%clk 0:01:18]}  dxe5 {[%clk 0:01:48]} 25. Qd6 {[%clk 0:01:14]}  Rg6 {[%clk 0:01:44]} 26. Qc5 {[%clk 0:00:53]}  Rcg8 {[%clk 0:01:43]} 27. b4 {[%clk 0:00:46]}  f4 {[%clk 0:01:38]} 28. g3 {[%clk 0:00:35]}  fxg3 {[%clk 0:01:35]} 29. fxg3 {[%clk 0:00:35]}  Rxg3+ {[%clk 0:01:32]} 30. hxg3 {[%clk 0:00:20]}  Qxg3+ {[%clk 0:01:33]} 31. Kh1 {[%clk 0:00:21]}  Qh4+ {[%clk 0:01:32]} 0-1


[Site "https://www.chess.com"]

[Event "Titled Tuesday Blitz May 30 Late 2023"]
[White "Nilsen, Tobias Lang"]
[Black "brm72"]
[WhiteFideId "1521624"]
[WhiteElo "2183"]
[BlackElo "2597"]
[Result "1-0"]
[Round "03"]
[TimeControl "180+2"]
[Date "2023.05.31"]
[WhiteClock "0:00:25"]
[BlackClock "0:00:03"]

1. e4 {[%clk 0:03:00]}  c5 {[%clk 0:02:59]} 2. Nf3 {[%clk 0:03:00]}  e6 {[%clk 0:03:00]} 3. d4 {[%clk 0:03:01]}  cxd4 {[%clk 0:03:01]} 4. Nxd4 {[%clk 0:03:02]}  Nc6 {[%clk 0:03:01]} 5. Nc3 {[%clk 0:03:02]}  Qc7 {[%clk 0:03:01]} 6. Be3 {[%clk 0:03:03]}  a6 {[%clk 0:03:00]} 7. g4 {[%clk 0:03:03]}  Bb4 {[%clk 0:02:50]} 8. Nxc6 {[%clk 0:02:41]}  bxc6 {[%clk 0:02:41]} 9. Qd4 {[%clk 0:02:40]}  Bf8 {[%clk 0:02:33]} 10. O-O-O {[%clk 0:02:33]}  d5 {[%clk 0:02:26]} 11. exd5 {[%clk 0:02:28]}  cxd5 {[%clk 0:02:27]} 12. Bg2 {[%clk 0:02:26]}  Bb7 {[%clk 0:02:27]} 13. Rhe1 {[%clk 0:02:25]}  Ne7 {[%clk 0:02:20]} 14. Bf4 {[%clk 0:02:23]}  Qa5 {[%clk 0:02:11]} 15. h4 {[%clk 0:02:18]}  Rc8 {[%clk 0:02:09]} 16. Kb1 {[%clk 0:02:18]}  Rc4 {[%clk 0:02:08]} 17. Qd2 {[%clk 0:02:17]}  Ng6 {[%clk 0:02:01]} 18. Bg3 {[%clk 0:02:16]}  Bb4 {[%clk 0:01:59]} 19. h5 {[%clk 0:02:15]}  Ne7 {[%clk 0:01:59]} 20. h6 {[%clk 0:02:11]}  g6 {[%clk 0:01:56]} 21. Be5 {[%clk 0:02:10]}  O-O {[%clk 0:01:56]} 22. Qg5 {[%clk 0:02:04]}  f5 {[%clk 0:01:23]} 23. Bg7 {[%clk 0:01:48]}  Rf7 {[%clk 0:01:21]} 24. Rxe6 {[%clk 0:01:47]}  Rxg4 {[%clk 0:01:19]} 25. Qe3 {[%clk 0:01:25]}  Rxg2 {[%clk 0:01:06]} 26. a3 {[%clk 0:01:25]}  Bc5 {[%clk 0:01:04]} 27. Qe5 {[%clk 0:01:21]}  Rg4 {[%clk 0:00:40]} 28. Nxd5 {[%clk 0:00:55]}  Nxd5 {[%clk 0:00:12]} 29. Re8+ {[%clk 0:00:54]}  Bf8 {[%clk 0:00:12]} 30. Bxf8 {[%clk 0:00:48]}  Nf6 {[%clk 0:00:02]} 31. Bc5+ {[%clk 0:00:25]}  Nxe8 {[%clk 0:00:03]} 32. Qxe8+ {[%clk 0:00:25]} 1-0


[Site "https://www.chess.com"]

[Event "Titled Tuesday Blitz May 30 Late 2023"]
[White "Jakic, Ivan"]
[Black "Adla, Diego"]
[WhiteFideId "14504901"]
[BlackFideId "100072"]
[WhiteElo "2370"]
[BlackElo "2377"]
[Result "0-1"]
[Round "03"]
[TimeControl "180+2"]
[Date "2023.05.31"]
[WhiteClock "0:00:05"]
[BlackClock "0:01:04"]

1. e4 {[%clk 0:02:59]}  e5 {[%clk 0:02:57]} 2. Nf3 {[%clk 0:02:53]}  Nc6 {[%clk 0:02:57]} 3. Bb5 {[%clk 0:02:53]}  a6 {[%clk 0:02:55]} 4. Ba4 {[%clk 0:02:53]}  Nf6 {[%clk 0:02:55]} 5. d4 {[%clk 0:02:54]}  exd4 {[%clk 0:02:53]} 6. O-O {[%clk 0:02:53]}  Be7 {[%clk 0:02:52]} 7. e5 {[%clk 0:02:51]}  Ne4 {[%clk 0:02:41]} 8. Nxd4 {[%clk 0:02:51]}  O-O {[%clk 0:02:38]} 9. Nf5 {[%clk 0:02:40]}  d5 {[%clk 0:02:36]} 10. Bxc6 {[%clk 0:02:36]}  bxc6 {[%clk 0:02:33]} 11. Nxe7+ {[%clk 0:02:36]}  Qxe7 {[%clk 0:02:32]} 12. Re1 {[%clk 0:01:56]}  Re8 {[%clk 0:02:29]} 13. f3 {[%clk 0:01:56]}  Nd6 {[%clk 0:02:28]} 14. b3 {[%clk 0:01:54]}  Bd7 {[%clk 0:02:15]} 15. Ba3 {[%clk 0:01:21]}  Qh4 {[%clk 0:02:15]} 16. g3 {[%clk 0:01:11]}  Qd8 {[%clk 0:01:49]} 17. exd6 {[%clk 0:01:11]}  Qf6 {[%clk 0:01:49]} 18. c3 {[%clk 0:01:02]}  cxd6 {[%clk 0:01:49]} 19. Rf1 {[%clk 0:00:59]}  Bh3 {[%clk 0:01:46]} 20. Rf2 {[%clk 0:00:59]}  c5 {[%clk 0:01:42]} 21. Bb2 {[%clk 0:00:56]}  h5 {[%clk 0:01:37]} 22. Nd2 {[%clk 0:00:56]}  h4 {[%clk 0:01:30]} 23. g4 {[%clk 0:00:56]}  Qe6 {[%clk 0:01:26]} 24. Nf1 {[%clk 0:00:54]}  f5 {[%clk 0:01:24]} 25. g5 {[%clk 0:00:47]}  f4 {[%clk 0:01:20]} 26. Qd2 {[%clk 0:00:41]}  Qf5 {[%clk 0:01:18]} 27. Kh1 {[%clk 0:00:35]}  Qxg5 {[%clk 0:01:18]} 28. Rd1 {[%clk 0:00:34]}  Re6 {[%clk 0:01:10]} 29. Qxd5 {[%clk 0:00:26]}  Qxd5 {[%clk 0:01:10]} 30. Rxd5 {[%clk 0:00:27]}  Re1 {[%clk 0:01:09]} 31. Kg1 {[%clk 0:00:28]}  Rae8 {[%clk 0:01:10]} 32. Rdd2 {[%clk 0:00:21]}  Rb1 {[%clk 0:01:06]} 33. c4 {[%clk 0:00:08]}  Ree1 {[%clk 0:01:05]} 34. Rg2 {[%clk 0:00:05]}  Rxf1# {[%clk 0:01:04]} 0-1


[Site "https://www.chess.com"]

[Event "Titled Tuesday Blitz May 30 Late 2023"]
[White "Grinev, Valeriy"]
[Black "KorolDimitriy75"]
[WhiteFideId "14117517"]
[WhiteElo "2366"]
[BlackElo "2430"]
[Result "1-0"]
[Round "03"]
[TimeControl "180+2"]
[Date "2023.05.31"]
[WhiteClock "0:02:32"]
[BlackClock "0:01:58"]

1. e4 {[%clk 0:02:59]}  c5 {[%clk 0:02:58]} 2. Nf3 {[%clk 0:02:57]}  d6 {[%clk 0:02:58]} 3. Bb5+ {[%clk 0:02:55]}  Nd7 {[%clk 0:02:58]} 4. Nc3 {[%clk 0:02:54]}  Nf6 {[%clk 0:02:57]} 5. O-O {[%clk 0:02:54]}  g6 {[%clk 0:02:57]} 6. Re1 {[%clk 0:02:54]}  Bg7 {[%clk 0:02:57]} 7. h3 {[%clk 0:02:51]}  O-O {[%clk 0:02:57]} 8. Bf1 {[%clk 0:02:48]}  b6 {[%clk 0:02:51]} 9. a4 {[%clk 0:02:48]}  Bb7 {[%clk 0:02:49]} 10. b3 {[%clk 0:02:47]}  Nxe4 {[%clk 0:02:12]} 11. Nxe4 {[%clk 0:02:45]}  Bxa1 {[%clk 0:02:12]} 12. c3 {[%clk 0:02:45]}  d5 {[%clk 0:02:10]} 13. Ng3 {[%clk 0:02:41]}  d4 {[%clk 0:02:02]} 14. Ba3 {[%clk 0:02:39]}  dxc3 {[%clk 0:02:00]} 15. Qxa1 {[%clk 0:02:39]}  Bxf3 {[%clk 0:01:59]} 16. gxf3 {[%clk 0:02:34]}  cxd2 {[%clk 0:01:59]} 17. Rd1 {[%clk 0:02:33]}  Ne5 {[%clk 0:01:58]} 18. Qxe5 {[%clk 0:02:32]} 1-0


[Site "https://www.chess.com"]

[Event "Titled Tuesday Blitz May 30 Late 2023"]
[White "Grycel, Kamil"]
[Black "Fiorito, Francisco"]
[WhiteFideId "1115499"]
[BlackFideId "180165"]
[WhiteElo "2427"]
[BlackElo "2341"]
[Result "1-0"]
[Round "03"]
[TimeControl "180+2"]
[Date "2023.05.31"]
[WhiteClock "0:00:05"]
[BlackClock "0:00:05"]

1. d4 {[%clk 0:03:00]}  Nf6 {[%clk 0:02:58]} 2. Nf3 {[%clk 0:02:53]}  g6 {[%clk 0:02:55]} 3. Bf4 {[%clk 0:02:52]}  Bg7 {[%clk 0:02:54]} 4. e3 {[%clk 0:02:51]}  O-O {[%clk 0:02:54]} 5. h3 {[%clk 0:02:51]}  d6 {[%clk 0:02:54]} 6. Be2 {[%clk 0:02:51]}  b6 {[%clk 0:02:55]} 7. c4 {[%clk 0:02:49]}  Bb7 {[%clk 0:02:54]} 8. Nc3 {[%clk 0:02:50]}  Nbd7 {[%clk 0:02:55]} 9. O-O {[%clk 0:02:50]}  Qe8 {[%clk 0:02:55]} 10. Bh2 {[%clk 0:02:50]}  e5 {[%clk 0:02:53]} 11. Rc1 {[%clk 0:02:43]}  Ne4 {[%clk 0:02:51]} 12. Nd5 {[%clk 0:02:28]}  Rc8 {[%clk 0:02:41]} 13. Qc2 {[%clk 0:02:15]}  Nef6 {[%clk 0:02:39]} 14. dxe5 {[%clk 0:01:54]}  dxe5 {[%clk 0:02:26]} 15. Rfd1 {[%clk 0:01:50]}  Qe6 {[%clk 0:02:23]} 16. Ng5 {[%clk 0:01:45]}  Qe8 {[%clk 0:02:19]} 17. b4 {[%clk 0:01:27]}  h6 {[%clk 0:02:17]} 18. Nf3 {[%clk 0:01:18]}  Qe6 {[%clk 0:02:18]} 19. Qb3 {[%clk 0:01:15]}  Ne4 {[%clk 0:02:08]} 20. Nd2 {[%clk 0:01:07]}  Nxd2 {[%clk 0:02:05]} 21. Rxd2 {[%clk 0:01:07]}  Rfd8 {[%clk 0:01:56]} 22. Rcd1 {[%clk 0:01:05]}  c6 {[%clk 0:01:51]} 23. Nc3 {[%clk 0:01:04]}  Qe7 {[%clk 0:01:51]} 24. Bf3 {[%clk 0:00:56]}  Nf8 {[%clk 0:01:44]} 25. b5 {[%clk 0:00:50]}  Rxd2 {[%clk 0:01:42]} 26. Rxd2 {[%clk 0:00:50]}  cxb5 {[%clk 0:01:42]} 27. Nd5 {[%clk 0:00:20]}  Bxd5 {[%clk 0:01:24]} 28. Bxd5 {[%clk 0:00:20]}  bxc4 {[%clk 0:01:22]} 29. Bxc4 {[%clk 0:00:21]}  Ne6 {[%clk 0:01:20]} 30. Bg3 {[%clk 0:00:20]}  Nc5 {[%clk 0:01:19]} 31. Qb5 {[%clk 0:00:20]}  Ne4 {[%clk 0:01:19]} 32. Rd7 {[%clk 0:00:19]}  Qc5 {[%clk 0:00:42]} 33. Bxf7+ {[%clk 0:00:18]}  Kh7 {[%clk 0:00:41]} 34. Qd3 {[%clk 0:00:13]}  Qc1+ {[%clk 0:00:33]} 35. Kh2 {[%clk 0:00:13]}  Qc2 {[%clk 0:00:34]} 36. Qd5 {[%clk 0:00:09]}  Nxg3 {[%clk 0:00:31]} 37. fxg3 {[%clk 0:00:09]}  Qc5 {[%clk 0:00:23]} 38. Qe6 {[%clk 0:00:08]}  Qc2 {[%clk 0:00:20]} 39. Be8 {[%clk 0:00:06]}  Rxe8 {[%clk 0:00:10]} 40. Qxe8 {[%clk 0:00:05]}  e4 {[%clk 0:00:10]} 41. Qf7 {[%clk 0:00:05]}  Qc3 {[%clk 0:00:10]} 42. Rxa7 {[%clk 0:00:05]}  h5 {[%clk 0:00:10]} 43. Re7 {[%clk 0:00:04]}  b5 {[%clk 0:00:09]} 44. Re6 {[%clk 0:00:04]}  h4 {[%clk 0:00:06]} 45. Qxg6+ {[%clk 0:00:05]}  Kg8 {[%clk 0:00:05]} 46. Re8# {[%clk 0:00:05]} 1-0


[Site "https://www.chess.com"]